Cogmind - Beta 17.1 @@@ ROGUE MODE // 2026.09.06 @ 18:33:47 Player: skigear Result: Destroyed by G-50 Soldier with Heavy Laser Performance ------------- Evolutions (5) 2500 Regions Visited (14) 2800 Robots Destroyed (285) 1425 Value Destroyed (12147) 12147 Prototype IDs (31) 620 Alien Tech Used (0) 0 Bonus (3851) 3851 TOTAL SCORE: 23343 Bonus ------- Triggered High Security 500 High Alert Combat Kills 2874 Follower Combat Kills 204 Met Data Miner 300 Friendly Fire -27 Cogmind --------- Core Integrity 0/1000 Matter 289/400 Energy 150/310 System Corruption 15% Temperature Cool (9) Movement Core (2300) Ox45 Location -5/Upper Caves Parts ------- > --- POWER (2) -------- Reinforced Fission Core > --- PROPULSION (7) --- (None) > --- UTILITY (6) ------ Advanced Heat Sink Huge Storage Unit Medium Matter Pod Launcher Loader Advanced Shield Generator > --- WEAPON (2) ------- Heavy Ion Cannon Mass Driver > --- INVENTORY (25) --- Wheel Advanced Heat Sink Huge Storage Unit Improved Trap Scanner Advanced Signal Interpreter Makeshift Cloaking Device High-powered Tractor Beam Long-range Tractor Beam Advanced Field Recycling Unit (0) Plasma Rifle Beamcaster Wave Gun Advanced Plasma Cannon Mass Driver Tesla Bomb Launcher Mini Grenade Launcher Remote Datajack Heavy Flail Peak State ------------ > --- POWER ------------ Light Angular Momentum Engine Neutrino Core > --- PROPULSION ------- Improved Medium Treads Improved Medium Treads Armored Medium Treads Armored Medium Treads Heavy Treads Armored Wheel > --- UTILITY ---------- Advanced Heat Sink Huge Storage Unit Advanced Signal Interpreter Advanced Hacking Suite Advanced Drone Bay > --- WEAPON ----------- Heavy Phase Cannon Mass Driver > --- INVENTORY -------- Light Nuclear Core Reinforced Deuterium Engine Armored Wheel Improved Heat Sink Improved Coolant Injector Huge Storage Unit Energy Well Improved Trap Scanner Advanced Signal Interpreter Launcher Loader Improved Light Armor Plating Improved Light Armor Plating Improved Light Armor Plating Improved Medium Armor Plating Layered Medium Armor Plating Layered Medium Armor Plating High-powered Tractor Beam Long-range Tractor Beam Advanced Field Recycling Unit Plasma Rifle Mass Driver Mini Grenade Launcher Remote Datajack Heavy Flail [Rating: 98] Favorites ----------- Power Neutrino Core Engine Improved Deuterium Engine Power Core Neutrino Core Reactor Cold Fusion Reactor Propulsion Armored Treads Treads Armored Treads Wheel Armored Wheel Utility Huge Storage Unit Device Advanced Heat Sink Storage Huge Storage Unit Processor Signal Interpreter Hackware Advanced Hacking Suite Protection Improved Medium Armor Plating Weapon Heavy Plasma Cannon Energy Gun 01-MTF's Shockpuncher Energy Cannon Heavy Plasma Cannon Ballistic Gun Enhanced Autogun Ballistic Cannon Magnetic Acceleration Cannon Launcher Mini Grenade Launcher Special Weapon Improved Remote Datajack Impact Weapon Heavy Flail Special Melee Weapon Datajack Build | -11 -10 -10 -9 -8 -8 -8 -6 -6 -6 -6 -5 -5 -5 -5 ------- Run | Yrd Mat Min Mat Mat Sto Rec Fac Low Low Dat Pro Fac Upp Upp Slots Evolved 10 | . . . 2 2 . . 4 . . . . 2 . . Power 1 | . . . . . . . . . . . . 1 . . Propulsion 5 | . . . 1 1 . . 2 . . . . 1 . . Utility 4 | . . . 1 1 . . 2 . . . . . . . Weapon . | . . . . . . . . . . . . . . . Parts Attached 260 | 2 13 3 36 17 14 1 55 1 1 . 7 104 5 1 Power 33 | . 1 1 3 1 1 . 6 . 1 . 1 18 . . Engine 21 | . 1 1 3 1 1 . 4 . 1 . 1 8 . . Core 11 | . . . . . . . 1 . . . . 10 . . Reactor 1 | . . . . . . . 1 . . . . . . . Propulsion 65 | . 4 . 16 10 2 . 13 . . . 3 17 . . Treads 58 | . 3 . 13 9 2 . 13 . . . 3 15 . . Leg . | . . . . . . . . . . . . . . . Wheel 7 | . 1 . 3 1 . . . . . . . 2 . . Hover . | . . . . . . . . . . . . . . . Flight . | . . . . . . . . . . . . . . . Utility 94 | 1 4 1 6 2 2 1 26 . . . 2 46 3 . Device 53 | . 1 . 1 1 . 1 19 . . . 2 26 2 . Storage 10 | 1 2 1 1 . 1 . 2 . . . . 2 . . Processor 7 | . 1 . 1 . . . . . . . . 5 . . Hackware 2 | . . . . . . . . . . . . 2 . . Protection 22 | . . . 3 1 1 . 5 . . . . 11 1 . Artifact . | . . . . . . . . . . . . . . . Weapon 68 | 1 4 1 11 4 9 . 10 1 . . 1 23 2 1 Energy Gun 23 | 1 2 1 1 2 3 . 2 1 . . . 10 . . Energy Cannon 16 | . . . 5 . 3 . 3 . . . . 4 1 . Ballistic Gun 6 | . . . 1 2 . . 1 . . . . 2 . . Ballistic Cannon 9 | . 1 . . . 1 . 1 . . . 1 4 . 1 Launcher 6 | . 1 . 2 . . . 1 . . . . 2 . . Special Weapon 3 | . . . . . . . 1 . . . . 1 1 . Impact Weapon 2 | . . . 1 . 1 . . . . . . . . . Slashing Weapon . | . . . . . . . . . . . . . . . Piercing Weapon . | . . . . . . . . . . . . . . . Special Melee Weapon 3 | . . . 1 . 1 . 1 . . . . . . . Unidentified Prototypes 13 | . . . 3 1 5 . 2 . . . . 2 . . Parts Lost 80 | . 1 1 2 1 1 . 5 . 2 . 10 44 2 11 Power 10 | . . 1 1 . . . . . . . 1 5 . 2 Propulsion 28 | . 1 . . . . . 2 . 1 . 4 14 2 4 Utility 28 | . . . 1 . 1 . 3 . . . 4 15 . 4 Weapon 14 | . . . . 1 . . . . 1 . 1 10 . 1 Highest Loss Streak 12 | . 1 1 1 1 1 . 1 . 1 . 5 12 1 11 To Critical Strikes . | . . . . . . . . . . . . . . . Average Backups 21 | 5 9 13 19 19 20 25 23 22 23 24 22 22 23 22 Power 1 | 1 1 2 1 . 1 1 1 2 2 3 2 1 1 . Propulsion 4 | 3 1 . 6 5 6 10 7 4 5 7 5 1 1 1 Utility 9 | . 1 4 5 7 7 8 8 8 8 9 8 13 10 10 Weapon 5 | 1 3 3 5 4 5 6 5 6 4 4 4 5 9 8 Tool/Special . | . . . . . . . . . . . . . . . Unused Backups 54 | . 2 . 12 10 2 . 6 . . . . 14 1 7 Power 8 | . . . 2 1 2 . 1 . . . . 2 . . Propulsion 5 | . 1 . 1 2 . . . . . . . . . 1 Utility 21 | . . . 4 6 . . 4 . . . . 4 . 3 Weapon 20 | . 1 . 5 1 . . 1 . . . . 8 1 3 Tool/Special . | . . . . . . . . . . . . . . . Average Slot Usage (%) 93 | . 96 100 99 99 100 100 98 87 94 100 91 85 83 66 Engine 6 | . 13 14 10 9 9 9 5 6 6 6 6 4 5 3 Core 1 | . . . . . . . . . . . . 5 5 4 Treads 29 | . 20 14 27 27 36 36 39 26 24 20 17 25 27 13 Wheel 5 | . 7 13 5 8 . . . 13 14 20 20 3 . . Device 11 | . 5 . 6 16 12 17 16 13 10 13 11 7 14 11 Storage 7 | . 14 14 11 9 9 9 6 6 6 6 7 5 9 11 Processor 7 | . 6 14 11 9 9 9 6 6 6 6 6 8 5 2 Hackware 1 | . . . . . . . . . . . . 4 . . Protection 5 | . . . 4 . 5 . 7 13 13 13 6 3 1 4 Energy Gun 3 | . 21 14 1 7 3 9 3 . . . . 2 . . Energy Cannon 6 | . . . 16 5 10 9 7 1 8 13 11 2 10 8 Ballistic Cannon 1 | . 5 14 1 . 3 . . . . . . 3 . 1 Peak Build Rating 98 | 2 8 8 22 39 46 46 63 50 52 52 55 98 92 68 Average Rating 52 | 1 7 7 16 29 40 45 57 41 47 52 46 77 79 56 On Entrance 38 | . 2 8 8 20 39 46 45 45 40 52 52 55 90 68 Avg Prop Armor Cover (%) 15 | . 12 11 18 23 . . 21 22 20 17 16 6 . . Naked Turns . | . . . . . . . . . . . . . . . Heaviest Build 201 | 6 29 29 58 59 110 110 125 120 123 123 124 201 137 128 Greatest Support 217 | 3 40 40 60 112 112 99 139 24 36 36 36 217 214 137 Greatest Overweight (x) 12 | 1 2 2 5 4 1 1 5 4 5 3 3 12 . . Average Overweight (x) 1 | . 1 1 2 3 . 1 . 4 4 3 3 1 . . Largest Inventory Capacity 25 | 8 15 15 20 20 25 25 25 25 25 25 25 25 25 25 Average Capacity 23 | 7 12 14 19 20 21 25 24 25 25 25 25 25 25 25 Most Carried 25 | 8 11 15 20 20 25 25 25 24 25 25 25 25 25 25 Average Carried 22 | 6 9 13 19 19 20 25 24 23 24 25 23 24 24 23 Final Capacity 25 | 8 15 15 20 20 25 25 25 25 25 25 25 25 25 25 Final Carried 25 | 8 11 15 19 20 25 25 22 24 25 25 25 23 25 18 Class Distribution -------------------- 51% | Mutant 47% | Scavenger-Mutant Dominant Class ---------------- Mutant | -10/Materials Mutant | -10/Mines Mutant | -9/Materials Mutant | -8/Materials Mutant | -8/Storage Mutant | -8/Recycling Mutant | -6/Factory Scavenger-Mutant | -6/Lower Caves Scavenger-Mutant | -6/Lower Caves Scavenger-Mutant | -6/Data Miner Scavenger-Mutant | -5/Proximity Caves Scavenger-Mutant | -5/Factory Scavenger-Mutant | -5/Upper Caves Scavenger-Mutant | -5/Upper Caves Resources | -11 -10 -10 -9 -8 -8 -8 -6 -6 -6 -6 -5 -5 -5 -5 ----------- Run | Yrd Mat Min Mat Mat Sto Rec Fac Low Low Dat Pro Fac Upp Upp Matter Collected 8264 | 219 284 155 732 401 214 28 1637 116 285 . 156 3658 379 . Remotely 2266 | . . . . . . . 716 . . . . 1322 228 . Salvage Created 12537 | . 416 29 1456 627 566 113 3478 . 361 . 571 4197 508 215 Parts 559 | . 16 5 80 34 26 6 136 . 16 . 14 189 23 14 Haulers Intercepted 18 | . 2 . 5 4 3 . 1 . . . . 3 . . Recyclers Shooed 9 | . . . . . . . 6 . . . . 3 . . Parts Field Recycled 3 | . . . . . . . . . . . . 3 . . Retrieved Matter 27 | . . . . . . . . . . . . 27 . . Parts Self-Destructed 42 | . . . . . . . . . 13 . 11 . 6 12 Prevented 17 | . . . . . . . . . . . . . 15 2 Parts Restored . | . . . . . . . . . . . . . . . Kills | -11 -10 -10 -9 -8 -8 -8 -6 -6 -6 -6 -5 -5 -5 -5 ------- Run | Yrd Mat Min Mat Mat Sto Rec Fac Low Low Dat Pro Fac Upp Upp Combat Hostiles Destroyed 240 | . 10 3 30 11 6 2 51 . 8 . 10 91 13 5 Melee 2 | . . . . . . . 1 . . . . 1 . . Guns 44 | . 7 2 1 2 1 . 10 . . . . 21 . . Cannons 143 | . 2 1 21 7 4 1 26 . 5 . 10 63 1 2 AOE 39 | . . . 7 1 . . 12 . 3 . . 4 9 3 Classes Destroyed 18 | . 5 . 3 2 1 . 4 . 1 . 1 1 . . Worker 4 | . 1 . 2 . . . 1 . . . . . . . Builder 5 | . . . . 1 . . 2 . . . . 2 . . Tunneler 1 | . 1 . . . . . . . . . . . . . Hauler 18 | . 2 . 5 4 3 . 1 . . . . 3 . . Recycler 7 | . . . . . 1 . 6 . . . . . . . Drone 1 | . . . . . . . . . . . 1 . . . Watcher 10 | . . . 3 . 1 . 3 . . . . 3 . . Swarmer 51 | . 3 3 3 3 . . 4 . 1 . . 21 10 3 Saboteur 1 | . . . . . . . 1 . . . . . . . Grunt 85 | . 7 . 19 4 2 . 22 . 5 . 3 22 . 1 Brawler 7 | . . . . . . . 3 . . . 1 3 . . Duelist 6 | . . . 1 . . . 1 . . . . 4 . . Protector 1 | . . . . . . . 1 . . . . . . . Sentry 29 | . . . 7 3 4 2 5 . 1 . . 5 1 1 Specialist 2 | . . . . . . . . . . . . 2 . . Hunter 17 | . . . . 1 . . 4 . . . . 10 2 . Programmer 35 | . . . . . . . 10 . . . 1 24 . . Thug 2 | . . . . . . . . . . . 2 . . . Savage 1 | . . . . . . . . . . . 1 . . . Mutant 2 | . . . . . . . . . 1 . 1 . . . Best Kill Streak 11 | . 4 2 5 5 2 1 11 . 4 . 3 5 7 5 Combat Bots Only 9 | . 3 2 5 3 2 1 9 . 4 . 3 5 7 5 Max Kills in Single Turn 5 | . 2 1 2 1 1 1 5 . 1 . 1 2 2 3 Gunslinging . | . . . . . . . . . . . . . . . Exploded 3 | . . . 2 1 . . 3 . 1 . . 1 2 3 Melee 1 | . . . . . . . 1 . . . . 1 . . Uniques/NPCs Destroyed . | . . . . . . . . . . . . . . . Combat | -11 -10 -10 -9 -8 -8 -8 -6 -6 -6 -6 -5 -5 -5 -5 -------- Run | Yrd Mat Min Mat Mat Sto Rec Fac Low Low Dat Pro Fac Upp Upp Hostile Shots Fired 1681 | . 76 24 86 61 26 6 364 . 75 . 62 740 52 109 Missed 451 | . 15 5 28 22 8 . 110 . 21 . 20 168 19 35 Hits 1230 | . 61 19 58 39 18 6 254 . 54 . 42 572 33 74 Melee 38 | . . . 7 . . . 5 . . . 1 25 . . Projectile 1192 | . 61 19 51 39 18 6 249 . 54 . 41 547 33 74 Critical Strikes 48 | . 1 . 1 . 1 2 13 . 2 . . 27 . 1 Part Disruptions 5 | . . . . . . . . . . . . 5 . . Damage Taken 20772 | . 615 156 1060 548 363 92 4007 . 748 . 858 10748 429 1148 Core 1871 | . 127 16 299 75 22 16 198 . 63 . 38 868 . 149 Absorbed by Shields 745 | . . . . . . . . . . . . 444 159 142 Reduced by Siege Mode 128 | . . . . . . . . . . . . 123 5 . Redirected to Shielding 9 | . . . . 9 . . . . . . . . . . Regen/Repaired (Parts) 954 | . 97 . 45 31 . . 598 . . . . 183 . . Core Remaining (%) 62 | 100 . 42 25 . . 79 . . . . 64 . . . Volleys Fired 845 | . 54 11 84 54 32 3 177 . 21 . 33 353 15 8 Largest 2 | . 2 2 2 2 2 1 2 . 2 . 2 2 2 2 Hottest 195 | . 90 70 136 136 135 35 195 . 180 . 195 165 130 112 Shots Fired 1451 | . 106 22 159 108 62 3 293 1 33 . 57 570 27 10 Gun 519 | . 88 12 24 48 16 . 95 . . . . 236 . . Cannon 868 | . 17 10 124 60 45 3 177 1 26 . 57 321 18 9 Launcher 51 | . 1 . 11 . 1 . 16 . 5 . . 7 9 1 Special 13 | . . . . . . . 5 . 2 . . 6 . . Kinetic 329 | . 17 10 30 23 7 . 9 . . . 2 225 . 6 Thermal 1018 | . 88 12 118 85 54 3 249 1 26 . 55 306 18 3 Explosive 41 | . 1 . 11 . 1 . 16 . 5 . . 7 . . Electromagnetic 50 | . . . . . . . 14 . . . . 26 9 1 Robot Hit Streak 18 | . 18 2 16 8 7 2 15 . 4 . 8 17 5 7 Robot Miss Streak 5 | . 3 5 4 4 4 1 4 . 2 . 4 4 2 2 Penetration Max 1 | . . . . . . . . . . . . 1 . . Secondary Targets 5 | . . . . . . . 2 . . . . 3 . . Max Gunslinging Chain 1 | . . . . . . . 1 . . . . 1 . . Shots Hit Robots 885 | . 71 8 99 67 33 2 174 . 16 . 38 360 9 8 Core Hits 472 | . 23 3 48 19 15 1 131 . 19 . 13 179 14 7 Critical Kills 8 | . . . . 1 1 1 3 . . . . 2 . . Critical Parts Destroyed 2 | . . . 1 . . . 1 . . . . . . . Critical Strikes 36 | . 2 . 2 2 2 1 5 . . . 1 20 . 1 Burn 13 | . 2 . 1 1 1 . . . . . . 8 . . Meltdown 5 | . . . . 1 1 1 1 . . . . 1 . . Destroy 4 | . . . . . . . 3 . . . . 1 . . Blast 12 | . . . . . . . . . . . 1 10 . 1 Corrupt 1 | . . . . . . . 1 . . . . . . . Smash 1 | . . . 1 . . . . . . . . . . . Melee Attacks 33 | . . . 9 1 3 . 19 . 1 . . . . . Impact 28 | . . . 6 1 2 . 18 . 1 . . . . . Slashing . | . . . . . . . . . . . . . . . Piercing . | . . . . . . . . . . . . . . . Sneak Attacks 3 | . . . 1 . 1 . 1 . . . . . . . Combat Hostiles . | . . . . . . . . . . . . . . . Follow-up Attacks . | . . . . . . . . . . . . . . . Damage Inflicted 30495 | . 916 128 2350 1321 854 65 7396 . 1257 . 1745 12872 1198 393 Guns 7139 | . 715 46 204 479 210 . 1394 . . . . 4091 . . Cannons 17571 | . 199 82 1548 842 506 65 3565 . 718 . 1745 7824 212 265 Explosions 5655 | . . . 558 . 138 . 2377 . 539 . . 929 986 128 Melee 100 | . . . 40 . . . 60 . . . . . . . Ramming 30 | . 2 . . . . . . . . . . 28 . . Kinetic 7195 | . 199 82 351 176 118 . 148 . . . 78 5830 . 213 Thermal 17427 | . 715 46 1401 1145 598 65 4730 . 718 . 1667 6042 248 52 Explosive 3964 | . . . 558 . 138 . 2135 . 539 . . 594 . . Electromagnetic 1779 | . . . . . . . 323 . . . . 378 950 128 Impact 100 | . . . 40 . . . 60 . . . . . . . Slashing . | . . . . . . . . . . . . . . . Piercing . | . . . . . . . . . . . . . . . Highest Corruption 17 | . 3 3 7 . . . 6 6 8 8 9 17 15 15 Average Corruption 7 | . 2 3 3 . . . 4 6 7 8 8 10 14 15 Corruption Purged 32 | . . . . . . . . . . . . 32 . . Corruption Blocked . | . . . . . . . . . . . . . . . Effects 519 | . 6 16 2 . . . 152 41 37 2 33 170 56 4 Message Errors 125 | . 2 4 . . . . 42 4 14 . 9 37 13 . Matter Fused 121 | . 1 3 . . . . 24 18 9 2 4 42 16 2 Heat Flow Errors 63 | . . 2 1 . . . 20 4 2 . 6 22 6 . Energy Discharges 67 | . . 3 1 . . . 22 3 5 . 5 23 5 . Parts Rejected 5 | . . . . . . . 1 . . . 1 2 . 1 Parts Fused 10 | . . . . . . . . 2 1 . 1 4 2 . Data Loss (minor) 60 | . 3 1 . . . . 23 6 4 . 3 13 7 . Data Loss (major) 19 | . . . . . . . 6 1 1 . 1 9 1 . Misfires 26 | . . 1 . . . . 10 1 1 . . 8 5 . Alerts 10 | . . 1 . . . . 2 2 . . 2 2 1 . Misdirections 2 | . . . . . . . . . . . . 2 . . Weapon Failures 11 | . . 1 . . . . 2 . . . 1 6 . 1 Overload Shots 45 | . . . . . . . 6 . 8 . 8 23 . . Effects 5 | . . . . . . . . . 2 . . 3 . . Energy Bleed 4 | . . . . . . . . . 2 . . 2 . . Heat Surge 1 | . . . . . . . . . . . . 1 . . Overflow Damage 827 | . . . 77 3 . . 119 . 57 . 78 480 13 . Projectiles 556 | . . . 25 3 . . 27 . 57 . 78 366 . . Explosions 231 | . . . 12 . . . 92 . . . . 114 13 . Melee 40 | . . . 40 . . . . . . . . . . . Knockbacks 78 | . 7 4 4 . . . 1 . . . 1 60 . 1 Impact . | . . . . . . . . . . . . . . . Kinetic 70 | . 5 3 4 . . . 1 . . . 1 55 . 1 Secondary 8 | . 2 1 . . . . . . . . . 5 . . Self-Inflicted Damage 457 | . . . 21 . . . 200 . 37 . . 160 39 . Shots 13 | . . . 1 . . . 6 . 1 . . 3 2 . Rammed 4 | . 1 . . . . . . . . . . 3 . . Targets Rammed 5 | . 1 . . . . . . . . . . 4 . . Kicked . | . . . . . . . . . . . . . . . Crushed 1 | . . . . . . . . . . . . 1 . . Highest Temperature 535 | . 320 272 393 43 24 . 289 147 535 . 407 450 181 21 Average Temperature 90 | . 86 64 102 17 11 . 63 67 157 . 149 88 79 8 Received Heat Transfer 4399 | . 261 . 270 135 147 63 1078 . 281 . 297 1657 . 210 Effects 16 | . . . 2 . . . . . 6 . 1 7 . . Shutdowns 5 | . . . 1 . . . . . 1 . . 3 . . Energy Bleed 4 | . . . 1 . . . . . . . 1 2 . . Matter Decay 1 | . . . . . . . . . . . . 1 . . Damage (major) 6 | . . . . . . . . . 5 . . 1 . . Siege Activations 10 | . . . . . . . . . . . . 9 1 . Total Turns 205 | . . . . . . . . . . . . 194 11 . Longest Duration 47 | . . . . . . . . . . . . 47 11 . Martial Activations . | . . . . . . . . . . . . . . . Shielding Activations . | . . . . . . . . . . . . . . . Robots Disrupted 5 | . . . . . . . 4 . . . . 1 . . Combat Hostiles 5 | . . . . . . . 4 . . . . 1 . . Robots Corrupted 5 | . . . 1 . . . 1 . . . . . 3 . Combat Hostiles 5 | . . . 1 . . . 1 . . . . . 3 . Parts Fried 15 | . . . 2 . . . 2 . . . . 1 9 1 Impact Corruptions 1 | . . . 1 . . . . . . . . . . . Robots Melted 9 | . 1 . . 2 1 1 2 . . . . 2 . . Combat Hostiles 7 | . 1 . . 1 1 1 1 . . . . 2 . . Parts Melted 70 | . 5 . 5 4 1 1 20 . 1 . 8 24 . 1 Heat Transferred 27631 | . 1962 100 2775 2257 1112 100 6706 . 900 . 2190 9159 296 74 Parts Sabotaged 12 | . . . . . . . 7 . . . . 5 . . Parts Stolen . | . . . . . . . . . . . . . . . Parts Stripped . | . . . . . . . . . . . . . . . Power Chain Reactions 1 | . . . . . . . . . . . . . 1 . Alert | -11 -10 -10 -9 -8 -8 -8 -6 -6 -6 -6 -5 -5 -5 -5 ------- Run | Yrd Mat Min Mat Mat Sto Rec Fac Low Low Dat Pro Fac Upp Upp Maximum Alert Level 5 | . . . 2 . . . 4 . . . . 5 . . Low Security (%) 48 | 100 100 100 60 100 100 100 30 . . . . 18 . . Level 1 14 | . . . 34 . . . 11 . . . . 23 . . Level 2 10 | . . . 4 . . . 13 . . . . 18 . . Level 3 14 | . . . . . . . 36 . . . . 10 . . Level 4 8 | . . . . . . . 8 . . . . 16 . . Level 5 3 | . . . . . . . . . . . . 9 . . High Security . | . . . . . . . . . . . . 1 . . Max Security . | . . . . . . . . . . . . . . . Peak Influence 1912 | . 77 45 462 197 51 21 1458 . . . . 1912 . . Initial 450 | . . 24 . 189 . . . . . . . 450 . . Average 428 | . 14 6 211 94 10 1 521 . . . . 736 . . Influence Increases 8293 | . 299 85 1116 365 302 64 1974 . 151 . 125 3392 290 130 Destroy 0b10 Robot/C 4800 | . 200 60 700 220 120 40 1000 . 140 . 100 1860 260 100 Destroy 0b10 Robot/NC 240 | . 20 . 55 25 25 . 70 . . . 5 40 . . Destroy Leader 1048 | . 34 10 188 58 58 . 258 . 10 . 20 382 30 . Allied During Kill 33 | . . . 22 . . . . . 1 . . 10 . . Successful Hack 227 | . 7 . 46 15 34 23 48 . . . . 54 . . Disable Machine 585 | . . . 15 30 45 . 375 . . . . 120 . . Destroy Structure 550 | . 8 . 60 2 20 1 163 . . . . 296 . . Advance Influence 450 | . . . . . . . . . . . . 450 . . Lose Combat Pursuer 360 | . 30 15 30 15 . . 60 . . . . 180 . 30 Influence Decreases 7523 | . 236 148 668 813 302 64 516 1042 567 . 125 1480 1238 324 Entered New Map 1810 | . . 39 . 259 . . . 540 80 . . . 708 184 Time Decay 4597 | . 226 99 604 544 302 64 436 502 417 . 93 770 510 30 Search Patrol Dispatched 200 | . . . . . . . . . . . . 200 . . Lost Part 712 | . 10 10 20 10 . . 50 . 10 . 32 440 20 110 Lost Ally 204 | . . . 44 . . . 30 . 60 . . 70 . . Squads Dispatched 66 | . 2 . 4 1 3 . 22 . . . . 34 . . Investigation 10 | . . . 2 1 1 . 4 . . . . 2 . . Extermination 19 | . . . . . . . 8 . . . . 11 . . Reinforcement 17 | . 2 . 2 . 2 . 4 . . . . 7 . . Assault 19 | . . . . . . . 5 . . . . 14 . . Garrison 1 | . . . . . . . 1 . . . . . . . Intercept . | . . . . . . . . . . . . . . . Searches Triggered 2 | . . . . . . . . . . . . 2 . . Data Miner Redirects 7 | . . . . . . . . . . . . 7 . . Construction Impeded 4 | . . . 1 . 1 . 1 . . . . 1 . . Haulers Reinforced 3 | . . . . . . . 1 . . . . 2 . . Active Scanning Responses . | . . . . . . . . . . . . . . . Cargo Convoy Interrupts . | . . . . . . . . . . . . . . . Stealth | -11 -10 -10 -9 -8 -8 -8 -6 -6 -6 -6 -5 -5 -5 -5 --------- Run | Yrd Mat Min Mat Mat Sto Rec Fac Low Low Dat Pro Fac Upp Upp Distress Signals 15 | . 1 . 3 2 1 . 2 . . . . 6 . . Communications Jammed . | . . . . . . . . . . . . . . . Distress Signals . | . . . . . . . . . . . . . . . Times Spotted 361 | . 16 4 47 18 24 2 67 . 8 . 11 135 13 16 Peak Tracking Total 13 | . 3 3 7 7 3 1 9 . 4 . 3 9 7 13 Tactical Retreats 21 | . 2 1 2 1 . . 2 . . . . 12 . 1 Traps | -11 -10 -10 -9 -8 -8 -8 -6 -6 -6 -6 -5 -5 -5 -5 ------- Run | Yrd Mat Min Mat Mat Sto Rec Fac Low Low Dat Pro Fac Upp Upp Traps Triggered 6 | . 2 . 2 1 1 . . . . . . . . . Indirectly . | . . . . . . . . . . . . . . . Trap Hack Attempts . | . . . . . . . . . . . . . . . Triggered . | . . . . . . . . . . . . . . . Disarmed . | . . . . . . . . . . . . . . . Reprogrammed . | . . . . . . . . . . . . . . . Reused . | . . . . . . . . . . . . . . . Traps Extracted . | . . . . . . . . . . . . . . . Installed . | . . . . . . . . . . . . . . . Triggered . | . . . . . . . . . . . . . . . Machines | -11 -10 -10 -9 -8 -8 -8 -6 -6 -6 -6 -5 -5 -5 -5 ---------- Run | Yrd Mat Min Mat Mat Sto Rec Fac Low Low Dat Pro Fac Upp Upp Machines Disabled 42 | . . . 1 2 3 . 25 . 1 . . 8 . 2 Max in Single Turn 4 | . . . 1 1 1 . 4 . 1 . . 2 . 1 Garrison Access 2 | . . . . . . . . . . . . 2 . . Machines Repaired . | . . . . . . . . . . . . . . . Machines Dismantled . | . . . . . . . . . . . . . . . Machines Sabotaged . | . . . . . . . . . . . . . . . Overloaded Fab Kills . | . . . . . . . . . . . . . . . Hacking | -11 -10 -10 -9 -8 -8 -8 -6 -6 -6 -6 -5 -5 -5 -5 --------- Run | Yrd Mat Min Mat Mat Sto Rec Fac Low Low Dat Pro Fac Upp Upp Machines Accessed 87 | . 4 . 15 10 6 6 22 . 1 4 . 18 1 . Terminals 48 | . 3 . 10 7 5 4 11 . . . . 8 . . Fabricators 1 | . . . . . . . . . . . . 1 . . Repair Stations 11 | . 1 . 2 1 . . 4 . . . . 3 . . Recycling Units 14 | . . . 2 1 1 2 5 . . . . 3 . . Scanalyzers 5 | . . . 1 1 . . 2 . . . . 1 . . Garrison Access 2 | . . . . . . . . . . . . 2 . . Total Hacks 228 | . 13 . 39 30 10 20 50 . 1 26 . 38 1 . Successful 113 | . 6 . 18 12 5 7 19 . 1 26 . 18 1 . Failed 114 | . 7 . 21 17 5 13 31 . . . . 20 . . Catastrophic 25 | . . . 5 3 4 2 7 . . . . 4 . . Database Lockouts 1 | . . . . 1 . . . . . . . . . . Manual 77 | . 7 . 7 12 7 10 19 . 1 . . 14 . . Terminals 108 | . 11 . 27 17 8 14 20 . . . . 11 . . Fabricators 3 | . . . . . . . . . . . . 3 . . Repair Stations 34 | . 2 . 7 3 . . 10 . . . . 12 . . Recycling Units 33 | . . . 4 3 2 6 12 . . . . 6 . . Scanalyzers 20 | . . . 1 7 . . 8 . . . . 4 . . Garrison Access 2 | . . . . . . . . . . . . 2 . . Terminal Hacks 58 | . 4 . 12 4 3 4 2 . 1 26 . 1 1 . Record 15 | . . . . . 1 . 1 . 1 11 . 1 . . Part Schematic 13 | . 2 . . 1 . 2 . . . 8 . . . . Robot Schematic 4 | . . . . . . . . . . 4 . . . . Robot Analysis 5 | . . . 4 1 . . . . . . . . . . Prototype ID Bank 5 | . . . 2 . . . . . . 3 . . . . Open Door 2 | . . . . . 1 . . . . . . . 1 . Branch Access Points 1 | . . . . . . 1 . . . . . . . . Alert Level 4 | . 1 . 1 1 . 1 . . . . . . . . Locate Traps 4 | . . . 2 . 1 . 1 . . . . . . . Dispatch Records 1 | . . . 1 . . . . . . . . . . . Hauler Manifests 2 | . . . 1 1 . . . . . . . . . . Zone Layout 2 | . 1 . 1 . . . . . . . . . . . Fabricator Hacks 2 | . . . . . . . . . . . . 2 . . Load Schematic 1 | . . . . . . . . . . . . 1 . . Build 1 | . . . . . . . . . . . . 1 . . Repair Station Hacks 22 | . 2 . 4 2 . . 6 . . . . 8 . . Scan Component 12 | . 1 . 2 1 . . 3 . . . . 5 . . Repair 10 | . 1 . 2 1 . . 3 . . . . 3 . . Recycling Unit Hacks 8 | . . . 1 1 1 1 3 . . . . 1 . . Retrieve Components 8 | . . . 1 1 1 1 3 . . . . 1 . . Scanalyzer 13 | . . . . 5 . . 6 . . . . 2 . . Insert Component 7 | . . . . 3 . . 3 . . . . 1 . . Analyze 6 | . . . . 2 . . 3 . . . . 1 . . Garrison Access Hacks 2 | . . . . . . . . . . . . 2 . . Seal Access 2 | . . . . . . . . . . . . 2 . . Unauthorized Hacks 8 | . . . 1 . 1 2 2 . . . . 2 . . Terminals . | . . . . . . . . . . . . . . . Fabricators . | . . . . . . . . . . . . . . . Repair Stations . | . . . . . . . . . . . . . . . Recycling Units 8 | . . . 1 . 1 2 2 . . . . 2 . . Reject 8 | . . . 1 . 1 2 2 . . . . 2 . . Scanalyzers . | . . . . . . . . . . . . . . . Garrison Access . | . . . . . . . . . . . . . . . Data Cores Recovered . | . . . . . . . . . . . . . . . Used . | . . . . . . . . . . . . . . . Hacking Detections 70 | . 3 . 12 9 4 5 21 . . . . 16 . . Full Trace Events 8 | . . . 2 . . . 4 . . . . 2 . . Feedback Events 1 | . . . . . . . . . . . . 1 . . Corruption 1 | . . . . . . . . . . . . 1 . . Feedback Blocked . | . . . . . . . . . . . . . . . Robot Schematics Acquired 4 | . . . . . . . . . . 4 . . . . Robots Built . | . . . . . . . . . . . . . . . Authchips . | . . . . . . . . . . . . . . . Time . | . . . . . . . . . . . . . . . Total Robot Build Rating . | . . . . . . . . . . . . . . . Part Schematics Acquired 17 | . 2 . . 3 . 2 1 . . 8 . 1 . . Parts Built 1 | . . . . . . . . . . . . 1 . . Authchips . | . . . . . . . . . . . . . . . Time 84 | . . . . . . . . . . . . 84 . . Total Part Build Rating 6 | . . . . . . . . . . . . 6 . . Part Studies Acquired . | . . . . . . . . . . . . . . . Parts Repaired 10 | . 1 . 2 1 . . 3 . . . . 3 . . Time 394 | . 26 . 58 32 . . 140 . . . . 138 . . Parts Recycled . | . . . . . . . . . . . . . . . Recycled Matter . | . . . . . . . . . . . . . . . Retrieved Matter . | . . . . . . . . . . . . . . . Retrieved Components 42 | . . . 9 9 9 . 5 . . . . 10 . . Parts Scanalyzed 6 | . . . . 2 . . 3 . . . . 1 . . Part Schematics Acquired 4 | . . . . 2 . . 1 . . . . 1 . . Parts Damaged 1 | . . . . . . . 1 . . . . . . . Bothacking | -11 -10 -10 -9 -8 -8 -8 -6 -6 -6 -6 -5 -5 -5 -5 ------------ Run | Yrd Mat Min Mat Mat Sto Rec Fac Low Low Dat Pro Fac Upp Upp Used RIF Installer . | . . . . . . . . . . . . . . . Robots Hacked 11 | . . . 2 . 1 . 3 . . . . 5 . . Non-combat 8 | . . . 1 . . . 3 . . . . 4 . . Combat 3 | . . . 1 . 1 . . . . . . 1 . . Robot Hacks Applied 13 | . . . 2 . 1 . 5 . . . . 5 . . parse_system 4 | . . . 1 . 1 . . . . . . 2 . . no_distress 1 | . . . . . . . 1 . . . . . . . find_recycling 7 | . . . 1 . . . 4 . . . . 2 . . find_station 1 | . . . . . . . . . . . . 1 . . Relay Couplers Released . | . . . . . . . . . . . . . . . Fabnet Peak Effective % . | . . . . . . . . . . . . . . . Robots Rewired 4 | . . . . . . . . . 3 . . 1 . . Allies Hacked . | . . . . . . . . . . . . . . . Hacks Repelled . | . . . . . . . . . . . . . . . Allies | -11 -10 -10 -9 -8 -8 -8 -6 -6 -6 -6 -5 -5 -5 -5 -------- Run | Yrd Mat Min Mat Mat Sto Rec Fac Low Low Dat Pro Fac Upp Upp Total Allies 7 | . . 3 . . . . . . 3 . . 1 . . Largest Group 3 | . . 3 3 . . . . . 3 . . 1 . . Highest-Rated Group 142 | . . 40 40 . . . . . 60 . . 142 . . Highest-Rated Ally 142 | . . 16 16 . . . . . 20 . . 142 . . Total Orders 38 | . . . . . . . 16 . . . . 15 7 . ROAM 1 | . . . . . . . 1 . . . . . . . EXPLORE 29 | . . . . . . . 11 . . . . 11 7 . RETURN 8 | . . . . . . . 4 . . . . 4 . . Ally Attacks 51 | . . . 35 . . . . . . . . 16 . . Total Damage 993 | . . . 407 . . . . . . . . 586 . . Kills 8 | . . . 6 . . . . . . . . 2 . . Allies Corrupted . | . . . . . . . . . . . . . . . Allies Melted . | . . . . . . . . . . . . . . . Intel | -11 -10 -10 -9 -8 -8 -8 -6 -6 -6 -6 -5 -5 -5 -5 ------- Run | Yrd Mat Min Mat Mat Sto Rec Fac Low Low Dat Pro Fac Upp Upp Active Infowar (turns) 8934 | . . . . 1441 460 824 5633 . . . . 466 77 33 Optics 367 | . . . . . . . . . . . . 367 . . Sensors 8358 | . . . . 1441 460 824 5633 . . . . . . . IFF 369 | . . . . . . . 369 . . . . . . . Cloaking 110 | . . . . . . . . . . . . . 77 33 Jamming 328 | . . . . . . . 1 . . . . 327 . . Robot Analysis Total 5 | . . . 4 1 . . . . . . . . . . Derelict Logs Recovered 6 | . . 1 . . . . . 2 1 . 1 . 1 . Drone Launches 37 | . . . . . . . 16 . . . . 13 7 1 Drone Recoveries 28 | . . . . . . . 11 . . . . 10 7 . Exploration | -11 -10 -10 -9 -8 -8 -8 -6 -6 -6 -6 -5 -5 -5 -5 ------------- Run | Yrd Mat Min Mat Mat Sto Rec Fac Low Low Dat Pro Fac Upp Upp Turns Passed 25677 | 46 933 696 2072 1616 1363 907 6100 1357 1218 111 1059 6740 1394 65 Spaces Moved 11064 | 41 499 521 928 705 608 367 2184 897 708 83 676 2333 495 19 Core 41 | 41 . . . . . . . . . . . . . . Treads 6244 | . 178 39 434 72 608 367 2092 . . . . 1940 495 19 Legs . | . . . . . . . . . . . . . . . Wheels 4779 | . 321 482 494 633 . . 92 897 708 83 676 393 . . Hover . | . . . . . . . . . . . . . . . Flight . | . . . . . . . . . . . . . . . Fastest Speed 50 | 50 110 110 125 150 160 242 150 150 135 135 135 135 162 162 Average Speed 161 | 87 127 118 155 151 175 242 168 150 150 135 135 176 162 162 Slowest Speed 410 | 100 160 240 320 240 242 242 250 150 165 135 135 410 164 162 Overloaded Moves . | . . . . . . . . . . . . . . . Propulsion Burnouts . | . . . . . . . . . . . . . . . Robots Hopped 4 | . . . . . 4 . . . . . . . . . Potential Cave-ins 4 | . . . 1 . . . 3 . . . . . . . Cave-ins Triggered 1 | . . . 1 . . . . . . . . . . . Exploration Rate (%) 66 | 4 64 99 84 52 85 83 53 91 73 70 81 49 97 9 Regions Visited 14 Branch Regions 9 Pre-discovered Areas 1 | . . . . . . . . . . 1 . . . . Known Exits Taken 11 | . 1 1 1 1 1 1 1 1 1 1 1 . . . Unknown Exits Taken 3 | 1 . . . . . . . . . . . 1 1 . Scrap Searched 17 | . . 2 . . . . . 4 3 . 4 . 4 . Spaces Dug 55 | . . . 4 . 3 . 29 . . . . 18 1 . Terrain Destroyed 494 | . 7 . 76 . 19 1 170 1 43 . 16 156 4 1 Melee 13 | . . . 4 . 1 . 8 . . . . . . . Projectile 200 | . . . . . 14 1 53 1 11 . 16 101 2 1 AOE 281 | . 7 . 72 . 4 . 109 . 32 . . 55 2 . Terrain Rammed . | . . . . . . . . . . . . . . . Walls Destroyed . | . . . . . . . . . . . . . . . Machines Disabled . | . . . . . . . . . . . . . . . Actions | -11 -10 -10 -9 -8 -8 -8 -6 -6 -6 -6 -5 -5 -5 -5 --------- Run | Yrd Mat Min Mat Mat Sto Rec Fac Low Low Dat Pro Fac Upp Upp Total 17482 | 50 684 575 1398 1168 834 383 4303 910 825 82 764 4398 1067 41 Wait 4404 | . 92 25 231 335 150 9 1668 7 37 . 33 1301 511 5 Move 11042 | 40 498 520 927 704 599 366 2183 896 707 82 675 2332 494 19 Hop 4 | . . . . . 4 . . . . . . . . . Pick Up 289 | 8 14 9 36 24 12 . 57 2 7 . 10 96 14 . Fast Attach 88 | 2 . . 7 3 4 . 26 . 1 . 1 42 1 1 Attach 162 | . 7 1 6 4 2 . 27 2 8 . 9 81 10 5 Detach 31 | . . . . . . . 7 2 3 . . 18 1 . Swap 251 | . 13 6 47 16 14 1 68 . 4 . 2 68 9 3 Drop 274 | . 5 3 48 27 13 . 61 1 3 . 1 100 12 . Fire 845 | . 54 11 84 54 32 3 177 . 21 . 33 353 15 8 Melee 33 | . . . 9 1 3 . 19 . 1 . . . . . Ram . | . . . . . . . . . . . . . . . Kick . | . . . . . . . . . . . . . . . Crush 5 | . 1 . . . . . . . . . . 4 . . Escape Stasis . | . . . . . . . . . . . . . . . Rewire 54 | . . . 3 . 1 4 10 . 33 . . 3 . . Trap . | . . . . . . . . . . . . . . . Miscellaneous . | . . . . . . . . . . . . . . . Route ------- -11/Scrapyard -10/Materials (discovered 2 exits: *Mat / *Min) -10/Mines (discovered 2 exits: *Mat x2) -9/Materials (discovered 4 exits: *Mat x2 / *Min x2) -8/Materials (discovered 3 exits: *Fac / *Sto x2) -8/Storage (discovered 2 exits: *Fac / *Rec) -8/Recycling -6/Factory (discovered 2 exits: *Fac / *Low) -6/Lower Caves -6/Lower Caves (discovered 2 exits: *Fac / *Dat) -6/Data Miner -5/Proximity Caves -5/Factory -5/Upper Caves -5/Upper Caves History --------- Turn | Location | Event 17 | -11/Scrapyard | Discovered new exit (range 15) 47 | -11/Scrapyard | Entered Materials 312 | -10/Materials | Build established: Mutant 426 | -10/Materials | Discovered new exit (range 6) 561 | -10/Materials | Identified exit to Mines 694 | -10/Materials | Discovered new exit (range 16) 740 | -10/Materials | Repaired Lgt. Treads 953 | -10/Materials | Core integrity fell below 50% 980 | -10/Materials | Entered Mines 1173 | -10/Mines | Discovered new exit (range 15) 1187 | -10/Mines | Identified exit to Materials 1211 | -10/Mines | Assisted by bots powering up and referring to "LRC-V3" 1433 | -10/Mines | YI-UF0 nonchalantly dropped a Grenade Launcher on the ground 1461 | -10/Mines | Discovered exit to Materials (range 6) 1486 | -10/Mines | Learned Materials interactive machine intel 1676 | -10/Mines | Entered Materials 1676 | -9/Materials | Accompanied by 3 allies 1676 | -9/Materials | Evolved 2 slots: Propulsion x1, Utility x1 1677 | -9/Materials | Loaded intel: 18 interactive machine locations 1784 | -9/Materials | Repaired Wheel 2035 | -9/Materials | Discovered new exit (range 13) 2101 | -9/Materials | Identified exit to Mines 2183 | -9/Materials | Build established: Scavenger-Mutant 2272 | -9/Materials | Discovered new exit (range 3) 2275 | -9/Materials | Identified exit to Materials 2926 | -9/Materials | Discovered exit to Materials (range 15) 3126 | -9/Materials | Build established: Mutant 3358 | -9/Materials | Discovered exit to Mines (range 7) 3433 | -9/Materials | Repaired Arm. Wheel 3720 | -9/Materials | Crushed by falling debris 3720 | -9/Materials | Core integrity fell below 50% 3748 | -9/Materials | Entered another Materials area 3748 | -8/Materials | Evolved 2 slots: Propulsion x1, Utility x1 3796 | -8/Materials | Repaired Mni. Grenade Launcher 4353 | -8/Materials | Discovered new exit (range 15) 4416 | -8/Materials | Identified exit to Storage 4515 | -8/Materials | Central database locked down 4660 | -8/Materials | Discovered new exit (range 16) 5052 | -8/Materials | Identified exit to Factory 5183 | -8/Materials | Discovered exit to Storage (range 16) 5364 | -8/Materials | Entered Storage 5544 | -8/Storage | Met 01-MTF 6054 | -8/Storage | Discovered exit to Factory (range 16) 6407 | -8/Storage | Discovered new exit (range 5) 6416 | -8/Storage | Identified exit to Recycling 6662 | -8/Storage | Found Prototype Energy Gun 6662 | -8/Storage | Identified 01-MTF's Shockpuncher 6727 | -8/Storage | Entered Recycling 6728 | -8/Recycling | Met a Zionite searching for Scraptown 7571 | -8/Recycling | Discovered new exit (range 16) 7629 | -8/Recycling | Identified exit to Factory 7634 | -8/Recycling | Entered Factory 7634 | -6/Factory | Evolved 4 slots: Propulsion x2, Utility x2 9641 | -6/Factory | Discovered new exit (range 4) 9646 | -6/Factory | Identified exit to Factory 10022 | -6/Factory | Build established: Skirmisher 10067 | -6/Factory | Found Launcher Loader 10403 | -6/Factory | Build established: Mutant 10434 | -6/Factory | First assault squad dispatched 11494 | -6/Factory | Repaired Huge Storage Unit 11628 | -6/Factory | Repaired Imp. Medium Armor Plating 12258 | -6/Factory | Repaired Broken Launcher Loader 12307 | -6/Factory | Build established: Scavenger-Mutant 12483 | -6/Factory | Garrison activated, responded to threat 12743 | -6/Factory | Discovered new exit (range 25) 13590 | -6/Factory | Destroyed 9 combat bots 13731 | -6/Factory | Identified exit to Lower Caves 13734 | -6/Factory | Entered Lower Caves 13974 | -6/Lower Caves | Learned Factory stockpile data 14299 | -6/Lower Caves | Learned Factory trap positions 14701 | -6/Lower Caves | Discovered new exit (range 6) 14702 | -6/Lower Caves | Encountered a Warlord checkpoint 14707 | -6/Lower Caves | Identified exit to Lower Caves 15091 | -6/Lower Caves | Entered another Lower Caves area 15298 | -6/Lower Caves | Discovered exit to Factory (range 12) 15352 | -6/Lower Caves | Attacked by a delusional Derelict stockpiling Unaware 15682 | -6/Lower Caves | Lost 3 allies 15968 | -6/Lower Caves | Attracted the attention of an 0b10 checkpoint 16035 | -6/Lower Caves | Learned Factory emergency access door positions 16095 | -6/Lower Caves | Discovered new exit (range 13) 16112 | -6/Lower Caves | Identified exit to Data Miner 16124 | -6/Lower Caves | Entered a destroyed Warlord outpost 16309 | -6/Lower Caves | Entered Data Miner 16309 | -6/Data Miner | Discovered new exit (range 6) 16318 | -6/Data Miner | Identified exit to Proximity Caves 16336 | -6/Data Miner | Met Data Miner 16365 | -6/Data Miner | Learned location of Section 7 (-2) 16365 | -6/Data Miner | Acquired the access code to Warlord's prototype stash 16392 | -6/Data Miner | Received God Mode back door access code from Data Miner 16420 | -6/Data Miner | Entered Proximity Caves 16422 | -5/Proximity Caves | Spotter reported a threat 16423 | -5/Proximity Caves | Spotter reported a threat 16517 | -5/Proximity Caves | Spotter reported a threat 17244 | -5/Proximity Caves | Lost 5 parts (1p1n2u1w) 17293 | -5/Proximity Caves | Attacked by a faux Warlord 17366 | -5/Proximity Caves | Learned Factory trap positions 17427 | -5/Proximity Caves | Discovered exit to Factory (range 15) 17479 | -5/Proximity Caves | Entered Factory 17479 | -5/Factory | Evolved 2 slots: Power x1, Propulsion x1 17480 | -5/Factory | Loaded intel: 105 trap records 17751 | -5/Factory | Incoming investigation squad redirected 17779 | -5/Factory | Search patrols dispatched 17819 | -5/Factory | Fabricated Combat Drone Bay? 18079 | -5/Factory | Search patrols dispatched 18303 | -5/Factory | Discovered new exit (range 57) 19374 | -5/Factory | Found Prototype Launcher 19374 | -5/Factory | Identified Smartbomb Launcher 19375 | -5/Factory | System corruption reached 10% 19866 | -5/Factory | Build established: Mutant 19994 | -5/Factory | Repaired Mni. Grenade Launcher 20045 | -5/Factory | Repaired Launcher Loader 20046 | -5/Factory | Watched by a mysterious "MATRIX" hacker 20102 | -5/Factory | Repaired Neutrino Core 20779 | -5/Factory | First assault squad dispatched 20809 | -5/Factory | Incoming assault squad redirected 21683 | -5/Factory | Found Prototype Launcher 21877 | -5/Factory | Identified Tesla Bomb Launcher 21897 | -5/Factory | Lost 4 parts (3u1w) 22048 | -5/Factory | Build established: Scavenger-Mutant 22389 | -5/Factory | Core integrity fell below 50% 22469 | -5/Factory | Lost 12 parts (3p3n4u2w) 22906 | -5/Factory | Incoming assault squad redirected 23343 | -5/Factory | Incoming assault squad redirected 23351 | -5/Factory | Core integrity fell below 20% 23385 | -5/Factory | Lost 4 parts (1p2u1w) 23499 | -5/Factory | Incoming assault squad redirected 23504 | -5/Factory | Incoming assault squad redirected 23841 | -5/Factory | Incoming investigation squad redirected 24092 | -5/Factory | High security lockdown imminent 24172 | -5/Factory | High security lockdown engaged 24219 | -5/Factory | Entered Upper Caves 24252 | -5/Upper Caves | Destroyed 7 combat bots 24733 | -5/Upper Caves | Learned Factory stockpile data 24864 | -5/Upper Caves | Attracted the attention of an 0b10 checkpoint 25408 | -5/Upper Caves | Discovered new exit (range 12) 25613 | -5/Upper Caves | Entered another Upper Caves area 25646 | -5/Upper Caves | Attracted the attention of an 0b10 base 25678 | -5/Upper Caves | Destroyed by G-50 Soldier with Heavy Laser Last Messages --------------- 25665_ Imp. Light Armor Plating destroyed. 25666_ Corrupted Lgt. Nuclear Core fries itself beyond repair. 25667_ Advanced Drone released from Adv. Drone Bay. 25668_ G-50 Soldier knocked back. 25669_ S-27 Virus IFF system glitched. 25670_ Slug penetrates G-50 Soldier. 25670_ G-50 Soldier destroyed. 25670_ Machine disabled. 25673_ Quantum Rifle fries itself beyond repair. 25674_ Particle Reactor fries itself beyond repair. 25674_ Unknown Leg fries itself beyond repair. 25674_ G-50 Soldier Unknown Leg blasted off. 25675_ System corrupted: Matter fused (-5). 25675_ Adv. Drone Bay destroyed. 25675_ >> Lost connection to Advanced Drone. 25677_ S-27 Virus destroyed. 25677_ System corrupted: Mass Driver jammed. Map ----- +----------------------------------------------------+ | ?????????????????????????????????????????????????? | | ?????????????????????????????????????????????????? | | ?????????????????????????????????????????????????? | | ?????????????????????????????????????????????????? | | ?????????????????????????????????????????????????? | | ?????????????????????????????????????????????????? | | ?????????????????????????????????????????????????? | | ?????????????????????????????????????????????????? | | ?????????????????????????????????????????????????? | | ?????????????????????????????????????????????????? | | ##?????###??????????????####?????????????????????? | | " #### #??????####?## ###???????????????????? | | ??# ##???## ## ##??????????????????? | | ??# !#### ##?????????????????? | | ????# !## #?????????????????? | | ??????????# ##?#?????????????? | | ??????????######!% ###?????? #;#?????????????? | | ???????????????##! #???????# ##?????????????? | | ????????????????## ######## ##????????????? | | ????????????????## ##???????????? | | ????????????????# % #???????????? | | ????????????????# ;## ????#???????????? | | ?????????????#### ## ##### #???????????? | | ????????????## n s = #???????????? | | ????????????# *% #???????????? | | ????????????## ######=@/####### ##???????????? | | ?????????????## ?????#% g ??????????????????? | | ??????????????## ????"=g % sg g #???????????????? | | ???????????????# ??T" #g####% % #???????????????? | | ???????????????# # [%???? #???????????????? | | ???????????????# # ????? #???????????????? | | ???????????????# # """ ?????? / ??????????????? | | ???????????????# # """ ??????? / ????????????? | | ??????????????? ?# """ ????????/ #???????????? | | ??????????????? ?? """?????????? #???????????? | | ??????????????? ?# ? ?????????? ##???????????? | | ?????????????? ?# ??? ??????????? #????????????? | | ?????????????? ???????#????????????#????????????? | | ?????????????? ?????????????????????????????????? | | ?????????????? ?????????????????????????????????? | | ?????????????# ?????????????????????????????????? | | ?????????????## ?????????????????????????????????? | | ??????????????#??????????????????????????????????? | | ?????????????????????????????????????????????????? | | ?????????????????????????????????????????????????? | | ?????????????????????????????????????????????????? | | ?????????????????????????????????????????????????? | | ?????????????????????????????????????????????????? | | ?????????????????????????????????????????????????? | | ?????????????????????????????????????????????????? | +----------------------------------------------------+ Best States ------------- Heat Dissipation 78 Coolant Potential 80 Energy Generation 33 Energy Capacity 700 Matter Stores 400 Matter Capacity 400 Sight Range 18 Robot Scan Range 15 Terrain Scan Density 10 Jamming Range 14 Cloak Strength 3 Armor Coverage 600 Propulsion Shielding 33 Phase Shifting 5 Evasion (%) 50 Targeting Accuracy 5 Recoil Reduction 7 Particle Charging 20 Offensive Hacking 14 Item Schematics ----------------- Huge Storage Unit | -10/Materials | Hacked Tractor Beam | -10/Materials | Hacked Cargo Storage Unit | -8/Materials | Hacked Hpw. Tractor Beam | -8/Materials | Scanalyzed Hrd. Medium Armor Plating | -8/Materials | Scanalyzed Arm. Treads | -8/Recycling | Hacked Arm. Wheel | -8/Recycling | Hacked Adv. Treads | -6/Factory | Scanalyzed Force Lance | -6/Data Miner | Free Graphene Brace | -6/Data Miner | Free Centrium Wheel | -6/Data Miner | Free Cld. Plasma Rifle | -6/Data Miner | Free Cld. Gravmag System | -6/Data Miner | Free Lgt. Regenerative Plating | -6/Data Miner | Free Combat Drone Bay | -6/Data Miner | Free Imp. Matter Compressor | -6/Data Miner | Free Lrn. Tractor Beam | -5/Factory | Scanalyzed Robot Schematics ------------------ G-50 Soldier | -6/Data Miner | Free H-66 Slayer | -6/Data Miner | Free B-60 Warrior | -6/Data Miner | Free L-61 Swordsman | -6/Data Miner | Free Fabricated ------------ Combat Drone Bay | x1 | -5/Factory Repaired ---------- Lgt. Treads | 30% | -10/Materials Wheel | 57% | -9/Materials Arm. Wheel | 72% | -9/Materials Mni. Grenade Launcher | 38% | -8/Materials Huge Storage Unit | 45% | -6/Factory Imp. Medium Armor Plating | 3% | -6/Factory Launcher Loader | 59% | -6/Factory | Broken Mni. Grenade Launcher | 4% | -5/Factory Launcher Loader | 43% | -5/Factory Neutrino Core | 17% | -5/Factory Studied --------- None Alien Tech Used ----------------- None Achievements -------------- Analysis Probe Bumper Bots Construction Begets Destruction DATA ERROR: Steam Global Achievement% Ew, Corruption For Emergencies Only Heavy Suspicion I Have A Map? Immobile And Lovin' It Junior Dev Look Less Dangerous Next Time Organ Harvest Overwhelming Professional Mechanic Resistances Are Futile Spot Them First Suspicious There's More Where That Came From Throw Away The Key Well Done Challenges ------------ None Game ------ Seed GunGuidedStripper Manual? 0 Play Time 04:14:00 Cumulative 49.0 hours Start 2026.09.06 @ 00:16:48 End 2026.09.06 @ 18:33:47 Sessions 3 Manual Loads 0 Difficulty Rogue Special Mode None Game No. 30 Rogue 30 Adventurer 0 Explorer 0 Win Type - Total 0 Types 0/0/0/0/0/0/0/0/0/0 Lore% 20 Gallery% 31 Achievement% 22 Wizard Run 0 Options --------- Layout 1 ASCII 0 Keyboard 0 Movement Mouse Keybinds 0 Fullscreen 2 Font 32/SmallcapsGlow Map View 50x40 Zoom Use 0% Tactical HUD 1 Map Filters NONE Filters NONE Steam 1 RUN: d71b4293-d003-4acb-bca1-8053f63e09b0